bitfinex-derivatives/quotes_SOLF0:USTF0_20250719
["timestamp","ask_amount","ask_price","bid_price","bid_amount"]
[1752952339404,6.34451794,176.49,176.42,3.12]
[1752952339606,29.59091869,176.56,176.42,3.12]
[1752952339607,3.25,176.43,176.42,3.12]
[1752952341318,3.31878471,176.44,176.43,3.02]
[1752952341708,3.28,176.44,176.43,3.02]
[1752952342507,3.28,176.44,176.37,2.42843284]
[1752952342708,3.28,176.44,176.4,3.02]
[1752952343012,5.6652,176.43,176.4,8.6858]
[1752952343217,3.28,176.42,176.4,8.6858]
[1752952343512,0.04157778,176.44,176.4,8.6858]
[1752952343513,3.28,176.41,176.4,5.6658]
[1752952344016,3.28,176.41,176.4,8.6858]
[1752952345926,3.28,176.42,176.41,8.6855]
[1752952349120,3.32157778,176.44,176.43,8.685]
[1752952349709,0.04157778,176.44,176.43,8.685]
[1752952350919,3.32157778,176.44,176.43,8.685]
[1752952352918,0.04157778,176.44,176.43,8.685]
[1752952356324,3.28,176.48,176.47,5.6637]
[1752952356520,3.28,176.48,176.47,8.6837]
[1752952356722,3.28,176.51,176.47,3.02]
[1752952356923,3.28,176.5,176.49,5.6629]
[1752952357622,3.28,176.5,176.49,8.6829]
[1752952357825,3.28,176.5,176.49,3.02]
[1752952358324,3.28,176.52,176.48,0.0430377]
[1752952358624,3.28,176.52,176.49,5.663]
[1752952358825,3.28,176.52,176.49,8.683]
[1752952360232,3.28,176.51,176.49,8.683]
[1752952360822,8.9426,176.51,176.48,5.7063377]
[1752952361022,3.28,176.51,176.48,0.0430377]
[1752952361425,3.28,176.51,176.48,3.0630377]
[1752952361726,3.28,176.51,176.49,3.02]
[1752952362526,3.28,176.51,176.49,8.683]
[1752952364733,3.28,176.51,176.5,5.6628]
[1752952365132,3.28,176.53,176.5,3.02]
[1752952365333,3.28,176.53,176.52,8.6821]
[1752952366231,3.28,176.55,176.54,5.6614]
[1752952366428,3.28,176.55,176.54,8.6814]
[1752952367131,3.28,176.55,176.54,3.02]
[1752952367629,3.28,176.55,176.53,8.72366011]
[1752952369227,8.08903284,176.57,176.54,5.6614]
[1752952369433,3.28,176.58,176.53,0.04196011]
[1752952369932,3.28,176.58,176.56,3.02]
[1752952370728,104.46,176.62,176.53,0.04196011]
[1752952370929,3.1,176.59,176.54,2.42843284]
[1752952371233,3.1,176.61,176.59,5.6598]
[1752952371432,3.1,176.6,176.59,8.8998]
[1752952372228,2.42843284,176.63,176.6,5.6595]
[1752952372434,3.1,176.61,176.6,5.6595]
[1752952372625,3.1,176.61,176.58,0.04107501]
[1752952372829,3.1,176.62,176.59,8.8998]
[1752952373026,3.1,176.62,176.59,5.6598]
[1752952373236,3.1,176.62,176.6,3.24]
[1752952373426,3.1,176.63,176.58,0.04107501]
[1752952373627,3.1,176.63,176.58,2.46950785]
[1752952373932,3.1,176.65,176.59,3.24]
[1752952374929,3.1,176.63,176.6,3.24]
[1752952375136,104.64,176.67,176.59,3.24]
[1752952375337,3.1,176.63,176.59,3.24]
[1752952375738,3.1,176.62,176.59,3.24]
[1752952375939,2.42843284,176.65,176.59,3.24]
[1752952376137,2.42843284,176.65,176.58,2.46950785]
[1752952376138,3.1,176.61,176.6,3.24]
[1752952377037,3.1,176.62,176.61,5.6591]
[1752952377633,3.1,176.62,176.59,3.24]
[1752952377839,3.1,176.62,176.58,3.28107501]
[1752952378236,3.1,176.61,176.58,3.28107501]
[1752952378940,3.1,176.6,176.58,3.28107501]
[1752952379239,3.1,176.59,176.58,8.94097501]
[1752952379434,3.1,176.59,176.58,0.04107501]
[1752952380542,5.52843284,176.59,176.58,0.04107501]
[1752952380838,11.18833284,176.59,176.58,0.04107501]
[1752952384946,8.7599,176.59,176.58,0.04107501]
[1752952385142,3.1,176.59,176.58,3.28107501]
[1752952387549,3.1,176.59,176.58,0.04107501]
[1752952387847,8.7599,176.59,176.58,0.04107501]
[1752952389651,11.18833284,176.59,176.58,0.04107501]
[1752952400254,11.18833284,176.59,176.58,3.19107501]
[1752952403964,11.18833284,176.59,176.58,0.04107501]
[1752952407665,11.18833284,176.59,176.58,3.19107501]
[1752952414670,5.52843284,176.59,176.58,3.19107501]
[1752952415469,11.18833284,176.59,176.58,3.19107501]
[1752952418870,11.18833284,176.59,176.58,0.04107501]
[1752952419766,11.18833284,176.59,176.58,3.19107501]
[1752952420470,11.18833284,176.59,176.58,0.04107501]
[1752952420861,11.18833284,176.59,176.58,3.19107501]
[1752952422068,8.7599,176.59,176.58,3.19107501]
[1752952424678,8.9396,176.61,176.58,3.19107501]
[1752952425177,10.49106088,176.61,176.59,3.15]
[1752952426475,3.28,176.6,176.59,3.15]
[1752952429778,3.28,176.6,176.59,8.8099]
[1752952430278,3.26,176.61,176.59,8.8099]
[1752952430479,3.26,176.62,176.6,8.9296]
[1752952430677,3.26,176.62,176.61,3.27]
[1752952431176,6.34451794,176.66,176.61,3.27]
[1752952431679,8.9178,176.66,176.64,3.27]
[1752952432175,3.26,176.65,176.64,5.6583]
[1752952432575,3.26,176.65,176.63,5.69723884]
[1752952432775,5.6578,176.66,176.64,3.27]
[1752952432972,3.26,176.65,176.64,3.27]
[1752952433982,8.9178,176.66,176.64,3.27]
[1752952434184,3.26,176.65,176.64,3.27]
[1752952435680,3.26,176.65,176.64,8.9283]
[1752952436781,3.26,176.65,176.64,3.27]
[1752952437873,3.26,176.65,176.64,8.9283]
[1752952440185,90.49726674,176.68,176.65,5.6579]
[1752952440384,84.84006674,176.68,176.66,3.27]
[1752952440783,3.26,176.71,176.7,3.27]
[1752952441387,3.26,176.72,176.71,3.27]
[1752952442593,3.26,176.72,176.7,3.27]
[1752952442985,3.26,176.72,176.69,3.31073298]
[1752952443182,3.26,176.72,176.7,3.27]
[1752952443681,3.26,176.73,176.71,3.27]
[1752952443885,2.42414155,176.76,176.71,3.27]
[1752952444086,3.26,176.75,176.73,5.6554]
[1752952444281,3.26,176.77,176.74,3.27]
[1752952444685,3.26,176.77,176.74,5.6549]
[1752952444884,3.26,176.77,176.75,3.27]
[1752952445285,3.26,176.77,176.75,5.6547]
[1752952445484,3.26,176.8,176.76,3.27]
[1752952445787,3.26,176.81,176.78,3.27]
[1752952445988,3.26,176.8,176.78,3.27]
[1752952446190,3.26,176.8,176.78,3.31090559]
[1752952446493,3.26,176.79,176.78,0.04090559]
[1752952446691,3.26,176.8,176.78,0.04090559]
[1752952446992,3.26,176.79,176.78,3.31090559]
[1752952447385,3.26,176.8,176.78,3.31090559]
[1752952447591,3.26,176.81,176.78,3.31090559]
[1752952447789,3.26,176.8,176.78,3.31090559]
[1752952448187,3.26,176.81,176.78,5.69470559]
[1752952448395,8.9125,176.83,176.79,3.27]
[1752952448589,3.26,176.82,176.79,3.27]
[1752952448892,3.26,176.81,176.79,3.27]
[1752952449797,8.9129,176.81,176.79,3.27]
[1752952449998,3.26,176.8,176.79,3.27]
[1752952450295,5.654,176.78,176.73,8.9253]
[1752952450494,3.26,176.77,176.75,3.27]
[1752952450685,2.42414155,176.78,176.75,3.27]
[1752952450890,3.26,176.76,176.75,3.27]
[1752952451691,0.03585808,176.77,176.75,3.27]
[1752952451897,3.29585808,176.77,176.75,3.27]
[1752952452093,3.26,176.76,176.74,3.27]
[1752952452295,3.26,176.75,176.69,2.42414155]
[1752952452493,3.26,176.74,176.69,2.42414155]
[1752952452796,3.26,176.76,176.7,3.27]
[1752952452996,0.04019609,176.73,176.72,5.6557]
[1752952453195,0.04019609,176.73,176.72,8.9257]
[1752952454793,0.04019609,176.73,176.72,3.27]
[1752952455190,3.30019609,176.73,176.66,2.42414155]
[1752952455398,3.26,176.72,176.69,3.27]
[1752952455594,3.26,176.72,176.7,3.27]
[1752952455998,3.26,176.71,176.7,3.27]
[1752952458499,0.03760919,176.72,176.7,3.27]
[1752952459403,0.03760919,176.72,176.7,8.9262]
[1752952459798,0.03760919,176.72,176.71,3.27]
[1752952461698,3.17760919,176.72,176.71,3.27]
[1752952464302,3.17760919,176.72,176.71,8.9261]
[1752952464697,3.17760919,176.72,176.71,8.6961]
[1752952465603,3.17760919,176.72,176.71,3.04]
[1752952468804,0.03760919,176.72,176.71,3.04]
[1752952468999,11.25755074,176.72,176.68,5.6569]
[1752952469201,3.14,176.71,176.69,3.04]
[1752952469501,3.14,176.71,176.69,5.6565]
[1752952469806,3.14,176.71,176.7,3.04]
[1752952476009,3.14,176.71,176.7,8.6964]
[1752952478406,3.14,176.71,176.61,3.04]
[1752952478603,3.14,176.66,176.61,3.04]
[1752952478798,3.14,176.65,176.61,3.04]
[1752952479102,0.03932688,176.65,176.59,2.42414155]
[1752952479409,0.03932688,176.65,176.64,5.658]
[1752952479611,3.17932688,176.65,176.64,5.658]
[1752952479812,3.17932688,176.65,176.64,8.698]
[1752952480611,0.03932688,176.65,176.64,8.698]
[1752952481302,3.17932688,176.65,176.64,8.698]
[1752952481509,3.17932688,176.65,176.64,3.04]
[1752952482308,8.83732688,176.65,176.64,3.04]
[1752952482511,3.14,176.64,176.62,8.6988]
[1752952482814,3.14,176.64,176.63,3.04]
[1752952484212,5.56414155,176.64,176.61,3.04]
[1752952484416,3.14,176.63,176.61,3.04]
[1752952485413,3.14,176.63,176.61,8.6992]
[1752952485714,3.14,176.62,176.61,3.04]
[1752952487813,3.14,176.62,176.61,8.6993]
[1752952489820,3.14,176.62,176.61,3.04]
[1752952491914,3.14,176.62,176.61,8.6993]
[1752952500934,4.69127502,176.62,176.61,3.04]
[1752952501327,8.7993,176.61,176.6,3.32759777]
[1752952501530,8.7993,176.61,176.6,0.03759777]
[1752952501728,8.7993,176.61,176.55,1.55127502]
[1752952501729,3.14,176.61,176.56,3.29]
[1752952501925,3.14,176.56,176.55,3.29]
[1752952502236,3.14,176.56,176.5,107.39127502]
[1752952502430,1.55127502,176.53,176.52,5.6621]
[1752952502637,4.69127502,176.53,176.52,3.29]
[1752952502935,3.14,176.53,176.52,3.29]
[1752952504928,3.14,176.53,176.52,8.9521]
[1752952512145,3.14,176.53,176.52,5.6621]
[1752952513446,3.14,176.53,176.52,8.9521]
[1752952515445,3.14,176.53,176.52,5.6621]
[1752952516344,3.14,176.53,176.52,8.9521]
[1752952522843,3.14,176.53,176.52,5.6621]
[1752952528253,3.16,176.52,176.48,3.24]
[1752952528458,5.58626761,176.52,176.48,3.24]
[1752952528655,3.16,176.51,176.48,3.24]
[1752952529060,4.71328117,176.5,176.49,5.6631]
[1752952529251,4.71328117,176.5,176.49,8.9031]
[1752952529556,1.55328117,176.5,176.49,8.9031]
[1752952530855,4.71328117,176.5,176.49,8.9031]
[1752952534854,0.042361,176.54,176.5,3.24]
[1752952535059,0.042361,176.54,176.5,4.79328117]
[1752952535255,4.71328117,176.55,176.51,108.34]
[1752952535453,4.71328117,176.55,176.52,4.79328117]
[1752952535654,0.04264154,176.54,176.53,8.9018]
[1752952535857,4.71328117,176.57,176.53,3.24]
[1752952536258,3.16,176.56,176.53,3.24]
[1752952536659,4.71328117,176.57,176.56,8.9009]
[1752952536855,1.55328117,176.57,176.56,8.9009]
[1752952537060,1.55328117,176.58,176.56,3.24]
[1752952537262,1.59494717,176.58,176.56,3.24]
[1752952537461,0.041666,176.58,176.57,5.6605]
[1752952537757,0.041666,176.58,176.57,8.9005]
[1752952539759,3.16,176.62,176.61,5.6593]
[1752952540062,3.16,176.62,176.61,8.8993]
[1752952540862,3.16,176.62,176.56,3.24]
[1752952541162,6.34451794,176.67,176.6,0.04302057]
[1752952541163,8.08329717,176.61,176.6,0.04302057]
[1752952541457,11.24329717,176.61,176.6,0.04302057]
[1752952541766,11.24329717,176.61,176.55,3.24]
[1752952541767,3.16,176.58,176.55,3.24]
[1752952542165,3.16,176.59,176.55,0.04229955]
[1752952542359,3.16,176.59,176.56,3.24]
[1752952542556,3.16,176.58,176.56,3.24]
[1752952543359,3.16,176.61,176.58,3.24]
[1752952543561,3.16,176.6,176.58,3.24]
[1752952543964,3.16,176.6,176.59,8.8996]
[1752952544659,6.34451794,176.68,176.61,3.24]
[1752952544859,3.16,176.67,176.61,3.24]
[1752952545058,5.6582,176.65,176.61,3.24]
[1752952545271,3.16,176.67,176.62,5.6587]
[1752952545565,8.8175,176.67,176.63,3.24]
[1752952545765,3.16,176.66,176.63,3.24]
[1752952545965,3.16,176.66,176.63,8.8984]
[1752952546660,3.16,176.66,176.62,0.04098144]
[1752952546661,3.16,176.65,176.62,0.04098144]
[1752952547067,3.16,176.65,176.62,5.69988144]
[1752952547266,3.16,176.65,176.62,0.04098144]
[1752952547669,3.16,176.65,176.63,5.6585]
[1752952547871,3.16,176.65,176.63,3.24]
[1752952548160,3.16,176.66,176.64,5.658]
[1752952548368,3.16,176.66,176.64,8.898]
[1752952548767,3.16,176.65,176.64,8.898]
[1752952551969,380.48,176.71,176.64,8.898]
[1752952552169,3.33,176.67,176.66,8.6774]
[1752952554569,3.33,176.7,176.66,3.02]
[1752952555774,3.33,176.7,176.69,5.6567]
[1752952556077,3.33,176.7,176.69,8.6767]
[1752952562081,107.46399717,176.74,176.71,3.02]
[1752952562481,3.33,176.73,176.72,3.02]
[1752952562678,3.33,176.73,176.72,8.6757]
[1752952562879,2.42399717,176.75,176.72,3.02]
[1752952563086,3.33,176.74,176.72,3.02]
[1752952563279,3.33,176.73,176.72,5.6557]
[1752952563886,3.33,176.73,176.72,8.6757]
[1752952564381,8.07869717,176.76,176.72,8.6757]
[1752952564382,3.33,176.75,176.72,3.02]
[1752952564587,3.33,176.74,176.72,3.02]
[1752952564882,2.42399717,176.76,176.72,3.02]
[1752952564883,3.33,176.75,176.72,3.02]
[1752952565283,3.33,176.76,176.72,3.02]
[1752952565484,3.33,176.76,176.75,5.6548]
[1752952565685,3.33,176.76,176.75,8.6748]
[1752952566984,3.33,176.78,176.76,5.6544]
[1752952567189,3.33,176.78,176.76,8.6744]
[1752952567385,3.33,176.78,176.76,5.6544]
[1752952567581,3.33,176.77,176.75,8.6747]
[1752952567892,5.75399717,176.77,176.75,0.0379938]
[1752952568083,3.33,176.76,176.75,0.0379938]
[1752952569081,3.33,176.76,176.75,5.6926938]
[1752952569385,3.33,176.76,176.75,0.0379938]
[1752952569791,3.33,176.76,176.75,8.7127938]
[1752952570393,3.33,176.76,176.75,0.0379938]
[1752952571096,3.33,176.76,176.75,5.6927938]
[1752952571295,3.33,176.78,176.75,3.0579938]
[1752952571790,2.42399717,176.79,176.76,8.6742]
[1752952571791,3.33,176.77,176.76,8.6742]
[1752952573792,3.33,176.77,176.76,5.6542]
[1752952573994,3.33,176.77,176.76,8.6742]
[1752952579699,3.33,176.79,176.78,3.02]
[1752952580089,3.33,176.79,176.75,0.0379938]
[1752952580301,3.33,176.79,176.77,3.02]
[1752952580690,3.33,176.79,176.77,8.674]
[1752952581090,3.33,176.79,176.75,0.0379938]
[1752952581289,3.33,176.79,176.78,5.6538]
[1752952581494,3.33,176.79,176.78,8.7238]
[1752952583400,107.00399717,176.83,176.78,3.07]
[1752952583699,3.14,176.8,176.78,3.07]
[1752952584194,112.65619717,176.83,176.8,5.653]
[1752952584396,107.00399717,176.83,176.77,0.037822]
[1752952584700,8.7926,176.82,176.79,5.6533]
[1752952584895,3.14,176.81,176.78,3.07]
[1752952585092,3.14,176.81,176.79,3.07]
[1752952585796,3.14,176.81,176.8,5.6532]
[1752952589199,3.14,176.81,176.79,5.6534]
[1752952589607,3.14,176.8,176.78,5.6537]
[1752952589908,5.56399717,176.8,176.77,0.037822]
[1752952590104,8.7937,176.79,176.77,0.037822]
[1752952590401,5.56399717,176.78,176.77,0.037822]
[1752952591307,5.56399717,176.78,176.77,3.107822]
[1752952591504,3.14,176.78,176.77,8.761922]
[1752952591708,104.48,176.79,176.77,3.107822]
[1752952591909,107.62,176.79,176.77,3.107822]
[1752952592910,107.62,176.79,176.78,5.6538]
[1752952593208,104.48,176.79,176.78,8.7238]
[1752952593507,3.14,176.79,176.78,3.07]
[1752952594515,3.14,176.79,176.78,8.7238]
[1752952598120,104.52,176.82,176.78,3.07]
[1752952598414,3.14,176.82,176.78,3.07]
[1752952599420,93.28338937,176.87,176.78,5.49399717]
[1752952599719,3.14,176.86,176.81,3.07]
[1752952599918,3.14,176.89,176.84,2.42399717]
[1752952600215,107.58,176.9,176.89,5.6503]
[1752952600414,104.44,176.9,176.83,2.42399717]
[1752952600615,3.14,176.89,176.88,8.7204]
[1752952600815,3.14,176.89,176.88,3.07]
[1752952604219,3.14,176.89,176.86,3.07]
[1752952604425,106.86399717,176.9,176.85,0.03804332]
[1752952604426,3.14,176.87,176.85,0.03804332]
[1752952605428,2.42399717,176.86,176.85,0.03804332]
[1752952605722,5.56399717,176.86,176.85,0.03804332]
[1752952606816,11.21529717,176.86,176.85,0.03804332]
[1752952618028,5.652,176.84,176.82,3.08]
[1752952618229,3.07,176.83,176.82,3.08]
[1752952618731,8.7223,176.83,176.82,3.08]
[1752952618926,5.6523,176.83,176.8,3.08]
[1752952619130,8.7226,176.82,176.81,3.08]
[1752952619725,3.07,176.82,176.81,3.08]
[1752952620831,3.07,176.82,176.81,8.7329]
[1752952621031,2.42399717,176.87,176.81,3.08]
[1752952621232,5.49399717,176.87,176.81,3.08]
[1752952621526,3.07,176.86,176.83,5.652]
[1752952621729,3.07,176.86,176.84,3.08]
[1752952622529,3.07,176.85,176.84,3.08]
[1752952622923,11.14579717,176.85,176.81,5.6528]
[1752952623132,3.07,176.84,176.78,3.08]
[1752952623925,2.42399717,176.85,176.83,3.08]
[1752952624128,3.07,176.84,176.78,3.08]
[1752952624332,3.07,176.74,176.72,3.08]
[1752952624632,3.07,176.73,176.67,3.08]
[1752952624931,6.25070211,176.77,176.63,2.42399717]
[1752952625125,2.42399717,176.72,176.66,3.08]
[1752952625325,3.07,176.69,176.66,3.08]
[1752952625632,3.07,176.68,176.66,3.08]
[1752952625833,3.07,176.68,176.67,3.08]
[1752952627125,2.42399717,176.7,176.59,484.58]
[1752952627324,3.07,176.69,176.62,3.08]
[1752952627524,3.07,176.69,176.65,5.6578]
[1752952627838,3.07,176.68,176.67,3.08]
[1752952633944,0.03666412,176.69,176.67,3.08]
[1752952634143,3.10666412,176.69,176.68,3.08]
[1752952640551,5.53066129,176.69,176.68,3.08]
[1752952640752,3.11,176.68,176.66,3.18]
[1752952640948,3.11,176.67,176.65,5.6578]
[1752952641549,3.11,176.67,176.66,3.18]
[1752952644052,3.11,176.66,176.61,3.18]
[1752952644561,3.11,176.65,176.64,5.6582]
[1752952644853,5.6557,176.73,176.64,5.6582]
[1752952645060,5.53399717,176.71,176.63,3.18]
[1752952645258,3.11,176.7,176.63,3.18]
[1752952645457,3.11,176.7,176.66,5.6575]
[1752952645659,3.11,176.69,176.67,3.18]
[1752952646463,3.11,176.69,176.68,3.18]
[1752952649259,3.11,176.71,176.65,3.18]
[1752952649565,5.53399717,176.73,176.65,3.18]
[1752952650064,5.53399717,176.73,176.65,5.60399717]
[1752952650260,3.11,176.72,176.66,3.18]
[1752952650456,8.766,176.72,176.68,5.6569]
[1752952650655,3.11,176.71,176.69,3.18]
[1752952651365,3.11,176.71,176.7,3.18]
[1752952652862,3.11,176.7,176.64,3.18]
[1752952653363,2.42399717,176.71,176.68,5.657]
[1752952653563,3.11,176.69,176.68,5.657]
[1752952653962,3.11,176.69,176.68,8.837]
[1752952654365,3.11,176.7,176.69,3.18]
[1752952654557,3.11,176.7,176.6,3.18]
[1752952654766,3.11,176.65,176.6,3.18]
[1752952655261,3.11,176.65,176.63,3.18]
[1752952655463,2.42399717,176.64,176.55,2.42399717]
[1752952655670,3.11,176.62,176.61,3.18]
[1752952657866,3.11,176.62,176.61,8.8393]
[1752952658164,3.11,176.73,176.58,3.18]
[1752952658466,11.19149717,176.67,176.59,2.42399717]
[1752952658766,11.19149717,176.67,176.66,3.18]
[1752952658969,5.53399717,176.67,176.66,3.18]
[1752952659564,5.53399717,176.69,176.66,3.18]
[1752952659966,3.11,176.69,176.66,3.18]
[1752952660163,3.11,176.69,176.67,5.6571]
[1752952660472,3.11,176.69,176.68,3.18]
[1752952661769,3.11,176.69,176.68,8.8371]
[1752952662968,3.11,176.71,176.7,3.18]
[1752952663668,3.11,176.71,176.69,3.18]
[1752952664466,3.11,176.71,176.69,8.8367]
[1752952664868,3.11,176.71,176.69,3.18]
[1752952666873,8.7662,176.71,176.69,3.18]
[1752952667067,3.11,176.7,176.69,3.18]
[1752952675274,3.27,176.72,176.7,3.01]
[1752952675476,3.27,176.71,176.64,2.42399717]
[1752952675878,3.27,176.71,176.69,5.6567]
[1752952676171,3.27,176.71,176.7,3.01]
[1752952676473,3.27,176.71,176.7,8.6664]
[1752952677067,14.32969928,176.75,176.7,5.6564]
[1752952677269,3.27,176.72,176.71,3.01]
[1752952679080,3.27,176.72,176.65,2.42399717]
[1752952679583,3.27,176.72,176.69,3.01]
[1752952680777,3.27,176.72,176.65,2.42399717]
[1752952680982,3.27,176.72,176.66,3.01]
[1752952681282,3.27,176.73,176.72,3.01]
[1752952681681,3.27,176.75,176.72,8.6656]
[1752952681877,2.42399717,176.77,176.73,3.01]
[1752952682182,3.27,176.75,176.73,3.01]
[1752952682379,3.27,176.74,176.69,2.42399717]
[1752952682574,2.42399717,176.75,176.66,2.42399717]
[1752952682781,3.27,176.74,176.66,2.42399717]
[1752952682980,3.27,176.74,176.71,8.6658]
[1752952683181,3.27,176.74,176.71,3.01]
[1752952683582,3.27,176.74,176.72,3.01]
[1752952684283,3.27,176.73,176.72,3.01]
[1752952687788,3.27,176.73,176.71,8.6659]
[1752952688983,3.27,176.74,176.71,8.6659]
[1752952689786,3.27,176.74,176.71,5.6559]
[1752952690089,3.27,176.74,176.72,3.01]
[1752952692886,3.27,176.74,176.72,8.6657]
[1752952693191,3.27,176.74,176.73,3.01]
[1752952694486,3.27,176.76,176.73,3.01]
[1752952694689,5.69399717,176.78,176.73,3.01]
[1752952694890,3.27,176.77,176.73,3.01]
[1752952695088,3.27,176.77,176.76,3.01]
[1752952695483,104.5,176.79,176.76,3.01]
[1752952695484,107.77,176.79,176.76,3.01]
[1752952695687,3.27,176.79,176.78,3.01]
[1752952696391,3.27,176.79,176.78,8.6638]
[1752952696792,3.27,176.79,176.78,3.01]
[1752952700388,3.27,176.79,176.77,3.01]
[1752952702000,3.27,176.79,176.78,3.01]
[1752952706501,3.27,176.79,176.78,8.6638]
[1752952708299,3.27,176.79,176.78,3.01]
[1752952716408,3.27,176.79,176.68,16.05810214]
[1752952716608,3.27,176.79,176.71,2.42399717]
[1752952716808,2.42399717,176.76,176.72,3.01]
[1752952717108,3.18,176.74,176.72,3.01]
[1752952717498,3.18,176.73,176.72,5.6555]
[1752952718098,8.07819717,176.77,176.73,5.6552]
[1752952718301,3.18,176.74,176.73,8.6652]
[1752952720309,3.18,176.74,176.67,2.42399717]
[1752952720512,3.18,176.74,176.72,3.01]
[1752952721506,3.18,176.73,176.72,5.6553]
[1752952721708,3.18,176.76,176.69,2.42399717]
[1752952722112,3.18,176.76,176.7,3.01]
[1752952722707,2.42399717,176.77,176.72,5.6554]
[1752952722708,3.18,176.75,176.72,5.6554]
[1752952722914,3.18,176.75,176.72,3.01]
[1752952723414,3.18,176.74,176.72,3.01]
[1752952723912,3.18,176.74,176.72,8.6655]
[1752952724712,3.18,176.74,176.73,3.01]
[1752952726414,3.18,176.78,176.73,3.01]
[1752952727014,5.6534,176.79,176.76,3.01]
[1752952727216,3.18,176.77,176.76,3.01]
[1752952727716,3.18,176.77,176.76,8.6643]
[1752952729116,5.6534,176.79,176.76,3.01]
[1752952729418,3.18,176.77,176.76,3.01]
[1752952731223,3.18,176.77,176.76,8.6643]
[1752952732422,3.18,176.77,176.76,3.01]
[1752952737130,3.18,176.76,176.65,4.74460214]
[1752952737323,3.18,176.75,176.68,3.13]
[1752952738018,3.18,176.73,176.71,3.13]
[1752952738222,3.18,176.73,176.72,3.13]
[1752952740323,3.18,176.73,176.72,8.7856]
[1752952740524,3.18,176.75,176.72,3.13]
[1752952740724,5.654,176.77,176.73,5.6549]
[1752952740926,3.18,176.76,176.74,3.13]
[1752952741629,3.18,176.75,176.74,3.13]
[1752952742732,3.18,176.75,176.68,3.13]
[1752952743531,0.04213027,176.73,176.71,5.6557]
[1752952743832,0.04213027,176.73,176.72,3.13]
[1752952744434,0.04213027,176.73,176.72,8.7856]
[1752952745331,3.22213027,176.73,176.72,8.7856]
[1752952746632,3.22213027,176.73,176.72,3.13]
[1752952748133,0.04213027,176.73,176.72,3.13]
[1752952748436,0.04213027,176.73,176.72,8.7856]
[1752952748733,3.22213027,176.73,176.72,8.7856]
[1752952749734,3.22213027,176.73,176.72,3.13]
[1752952750933,3.22213027,176.73,176.72,8.7856]
[1752952751536,0.04213027,176.73,176.72,8.7856]
[1752952753032,3.22213027,176.73,176.72,3.13]
[1752952756434,0.04213027,176.73,176.72,8.7856]
[1752952759939,3.22213027,176.73,176.72,8.7856]
[1752952760133,3.22213027,176.73,176.72,3.13]
[1752952761838,3.22213027,176.73,176.72,8.7856]
[1752952764340,0.04213027,176.73,176.72,8.7856]
[1752952764646,3.16213027,176.73,176.72,8.7856]
[1752952767246,3.16213027,176.73,176.72,3.13]
[1752952771250,3.16213027,176.73,176.72,8.7856]